bitfinex-derivatives/quotes_BTCF0:USTF0_20241231
["timestamp","ask_amount","ask_price","bid_price","bid_amount"]
[1735667123311,0.3781494,93709.0,93700.0,0.1]
[1735667123616,0.3608,93701.0,93700.0,0.1]
[1735667125920,0.3628,93701.0,93700.0,0.1]
[1735667126513,0.3628,93701.0,93700.0,0.07429842]
[1735667126715,0.3628,93701.0,93684.0,0.3608]
[1735667126909,0.3608,93691.0,93666.0,0.4935]
[1735667127110,0.16407892,93680.0,93666.0,0.3608]
[1735667127319,0.52487892,93680.0,93666.0,0.3608]
[1735667128205,0.3608,93669.0,93652.0,0.1355]
[1735667128515,0.3608,93669.0,93650.0,0.053478]
[1735667128717,0.00056001,93680.0,93668.0,0.3608]
[1735667128918,0.3608,93697.0,93684.0,0.002]
[1735667129221,0.3608,93697.0,93685.0,1.5]
[1735667129426,0.37797191,93697.0,93685.0,1.5]
[1735667129622,0.37797191,93697.0,93684.0,0.002]
[1735667129814,0.001,93691.0,93684.0,0.002]
[1735667130011,0.001,93691.0,93685.0,1.5]
[1735667130523,0.37897191,93697.0,93685.0,1.5]
[1735667131016,0.00216151,93720.0,93696.0,0.3608]
[1735667131220,0.0016015,93720.0,93718.0,0.053439]
[1735667132018,0.0016015,93720.0,93715.0,0.3608]
[1735667132220,0.0016015,93720.0,93698.0,0.2657]
[1735667132427,0.16568042,93720.0,93698.0,0.2657]
[1735667132615,0.52648042,93720.0,93695.0,0.3608]
[1735667132917,0.38339056,93720.0,93703.0,0.3608]
[1735667133518,0.37939056,93720.0,93703.0,0.3608]
[1735667133720,0.0036015,93720.0,93711.0,0.3608]
[1735667134014,0.0046015,93720.0,93711.0,0.3608]
[1735667134413,0.0036015,93720.0,93711.0,0.3608]
[1735667135018,0.0046015,93720.0,93711.0,0.3638]
[1735667135213,0.0026015,93720.0,93711.0,0.3638]
[1735667135616,0.001,93720.0,93711.0,0.3638]
[1735667136321,0.3608,93741.0,93719.0,0.3608]
[1735667136514,0.3608,93741.0,93733.0,0.3608]
[1735667137723,0.3668,93741.0,93733.0,0.3608]
[1735667137921,0.006,93741.0,93734.0,0.05343]
[1735667138425,0.00160088,93754.0,93734.0,0.05343]
[1735667138827,0.00160088,93754.0,93741.0,0.3608]
[1735667139210,0.01706022,93754.0,93741.0,0.3608]
[1735667139413,0.3608,93752.0,93733.0,0.3638]
[1735667139813,0.37844926,93760.0,93740.0,0.16407892]
[1735667140021,0.37788925,93760.0,93746.0,0.3608]
[1735667140621,0.001,93752.0,93746.0,0.3608]
[1735667141024,0.3608,93747.0,93733.0,0.3628]
[1735667141221,0.001,93752.0,93741.0,0.3608]
[1735667141418,0.01708925,93760.0,93751.0,0.3608]
[1735667141732,0.001,93754.0,93751.0,0.3608]
[1735667141918,0.001,93754.0,93741.0,0.3608]
[1735667142123,0.3608,93742.0,93720.0,0.1336]
[1735667142326,0.3608,93724.0,93707.0,0.3608]
[1735667142524,0.16407892,93720.0,93707.0,0.3608]
[1735667142725,0.3608,93713.0,93703.0,0.00160065]
[1735667143220,0.3608,93704.0,93703.0,0.00160065]
[1735667143733,0.3608,93704.0,93696.0,0.3608]
[1735667144429,0.18655921,93707.0,93703.0,0.002]
[1735667144824,0.18655921,93704.0,93696.0,0.3608]
[1735667145023,0.18755921,93704.0,93696.0,0.3638]
[1735667145235,0.18955921,93704.0,93696.0,0.3638]
[1735667146033,0.18755921,93704.0,93696.0,0.3638]
[1735667146325,0.18755921,93704.0,93700.0,0.053449]
[1735667146527,0.18655921,93704.0,93703.0,0.001]
[1735667147525,0.18655921,93704.0,93696.0,0.3608]
[1735667147720,0.01734544,93714.0,93698.0,0.05345]
[1735667147927,0.16407892,93720.0,93706.0,0.3608]
[1735667148331,0.3608,93725.0,93717.0,0.3608]
[1735667148629,0.3608,93725.0,93706.0,0.3608]
[1735667148829,0.16407892,93716.0,93706.0,0.3608]
[1735667149727,0.16407892,93716.0,93703.0,0.005]
[1735667149927,0.3608,93717.0,93706.0,0.005]
[1735667150133,0.16407892,93716.0,93706.0,0.005]
[1735667150529,0.16407892,93716.0,93698.0,0.3608]
[1735667150735,0.3608,93709.0,93706.0,0.001]
[1735667152532,0.3608,93709.0,93700.0,0.3608]
[1735667152735,0.002,93709.0,93701.0,0.053449]
[1735667153034,0.002,93709.0,93708.0,0.3608]
[1735667153227,0.002,93709.0,93706.0,0.001]
[1735667153427,0.002,93709.0,93708.0,0.3608]
[1735667153630,0.3608,93717.0,93708.0,0.3608]
[1735667153831,0.001,93709.0,93701.0,0.004]
[1735667154822,0.001,93709.0,93708.0,0.3608]
[1735667155534,0.001,93709.0,93708.0,0.3648]
[1735667156031,0.01698409,93720.0,93708.0,0.3608]
[1735667156229,0.3608,93728.0,93708.0,0.3638]
[1735667156653,0.3608,93728.0,93708.0,0.3608]
[1735667156936,0.3618,93709.0,93708.0,0.005]
[1735667157536,0.001,93709.0,93708.0,0.005]
[1735667158135,0.001,93709.0,93708.0,0.3658]
[1735667158935,0.52487892,93720.0,93708.0,0.3658]
[1735667159135,0.37820895,93720.0,93710.0,0.3608]
[1735667159534,0.01740895,93720.0,93710.0,0.3608]
[1735667159732,0.00160129,93729.0,93710.0,0.3608]
[1735667160237,0.001,93720.0,93710.0,0.3608]
[1735667160633,0.01856439,93729.0,93710.0,0.3608]
[1735667160634,0.03944962,93729.0,93710.0,0.3608]
[1735667160835,0.001,93720.0,93710.0,0.3648]
[1735667161845,0.18655921,93718.0,93710.0,0.004]
[1735667162343,0.18655921,93718.0,93700.0,0.3608]
[1735667162659,0.18655921,93718.0,93710.0,0.002]
[1735667163038,0.18755921,93718.0,93710.0,0.002]
[1735667163239,0.001,93718.0,93710.0,0.002]
[1735667163837,0.002,93718.0,93710.0,0.002]
[1735667164236,0.09198842,93717.0,93710.0,0.002]
[1735667165237,0.09198842,93717.0,93716.0,0.3608]
[1735667165734,0.09398842,93717.0,93716.0,0.3608]
[1735667165936,0.09398842,93717.0,93697.0,0.3608]
[1735667166135,0.16407892,93707.0,93697.0,0.3608]
[1735667166934,0.18674241,93706.0,93697.0,0.3608]
[1735667167149,0.18674241,93706.0,93682.0,1.50064]
[1735667167150,0.3608,93698.0,93682.0,0.00064]
[1735667167450,0.16407892,93692.0,93678.0,0.3608]
[1735667167649,0.3608,93698.0,93681.0,0.05346]
[1735667167838,0.3608,93698.0,93688.0,0.3608]
[1735667168540,0.21739411,93695.0,93691.0,0.053454]
[1735667169141,0.21739411,93695.0,93690.0,0.3608]
[1735667169646,0.001,93698.0,93690.0,0.3608]
[1735667170034,0.001,93698.0,93690.0,0.414255]
[1735667170234,0.001,93695.0,93692.0,0.3608]
[1735667170842,0.001,93698.0,93692.0,0.3608]
[1735667172639,0.1877846,93698.0,93692.0,0.3608]
[1735667173039,0.001,93695.0,93692.0,0.3628]
[1735667173659,0.1877846,93698.0,93692.0,0.3628]
[1735667174049,0.001,93698.0,93697.0,0.053451]
[1735667174552,0.1867846,93703.0,93702.0,0.053448]
[1735667174742,0.1867846,93703.0,93702.0,0.414248]
[1735667175140,0.1867846,93703.0,93692.0,0.3628]
[1735667175339,0.16407892,93702.0,93692.0,0.3628]
[1735667175551,0.3608,93709.0,93692.0,0.3628]
[1735667175749,0.37667469,93709.0,93692.0,0.3628]
[1735667175948,0.37667469,93709.0,93702.0,0.001]
[1735667176145,0.37667469,93709.0,93702.0,0.3618]
[1735667176345,0.1867846,93711.0,93702.0,0.3618]
[1735667176538,0.1867846,93711.0,93710.0,0.3608]
[1735667176743,0.03222368,93726.0,93710.0,0.3608]
[1735667177051,0.23292879,93724.0,93710.0,0.3608]
[1735667177246,0.16407892,93720.0,93710.0,0.3608]
[1735667177549,0.23292879,93724.0,93710.0,0.3628]
[1735667177752,0.001,93711.0,93710.0,0.416244]
[1735667178050,0.23292879,93724.0,93723.0,0.053436]
[1735667178253,0.00160129,93729.0,93728.0,0.053433]
[1735667178444,0.24845041,93738.0,93727.0,0.3608]
[1735667178640,0.24845041,93738.0,93737.0,0.414228]
[1735667178851,0.32611034,93752.0,93740.0,0.053427]
[1735667179039,0.01554733,93752.0,93745.0,0.3608]
[1735667179244,0.52487892,93770.0,93745.0,0.3608]
[1735667179543,0.08023539,93758.0,93754.0,0.3608]
[1735667179945,0.01547959,93758.0,93754.0,0.3608]
[1735667180147,0.52487892,93770.0,93745.0,0.3608]
[1735667180342,0.16407892,93760.0,93745.0,0.3608]
[1735667180747,0.3608,93762.0,93754.0,0.002]
[1735667181053,0.3608,93762.0,93754.0,0.3628]
[1735667181244,0.3608,93762.0,93754.0,0.3608]
[1735667182447,0.26627459,93770.0,93754.0,0.3608]
[1735667182646,0.26627459,93770.0,93763.0,0.3608]
[1735667182845,0.24970174,93770.0,93765.0,0.053412]
[1735667183146,0.24970174,93770.0,93769.0,0.3608]
[1735667183853,0.24970174,93770.0,93763.0,0.3608]
[1735667183854,0.3608,93779.0,93763.0,0.3608]
[1735667184049,0.3648,93770.0,93749.0,0.3608]
[1735667184355,0.3608,93759.0,93749.0,0.3608]
[1735667184655,0.3608,93750.0,93739.0,0.19195518]
[1735667184848,0.3608,93741.0,93733.0,0.36144]
[1735667185166,0.16407892,93749.0,93733.0,0.7216]
[1735667185450,0.01486286,93750.0,93746.0,0.3608]
[1735667185749,0.3608,93761.0,93746.0,0.3608]
[1735667186056,0.27789226,93760.0,93746.0,0.3608]
[1735667186849,0.001,93750.0,93746.0,0.3638]
[1735667187358,0.3608,93753.0,93746.0,0.003]
[1735667187850,0.3608,93753.0,93742.0,6.581e-05]
[1735667188058,0.001,93750.0,93746.0,0.003]
[1735667189557,0.09997746,93751.0,93746.0,0.003]
[1735667190154,0.002,93750.0,93742.0,0.36086581]
[1735667190459,0.005,93750.0,93742.0,0.36086581]
[1735667190657,0.003,93750.0,93742.0,0.36086581]
[1735667190853,0.003,93750.0,93746.0,0.002]
[1735667192258,0.003,93750.0,93742.0,0.36086581]
[1735667192457,0.09984938,93759.0,93749.0,0.414221]
[1735667192762,0.09984938,93759.0,93758.0,0.3608]
[1735667193353,0.16407892,93780.0,93758.0,0.414216]
[1735667193559,0.16407892,93780.0,93766.0,0.3608]
[1735667193950,0.1790305,93780.0,93766.0,0.3608]
[1735667194163,0.3608,93770.0,93756.0,0.3608]
[1735667194365,0.16407892,93768.0,93758.0,0.001]
[1735667194659,0.002,93759.0,93758.0,0.001]
[1735667195949,0.002,93759.0,93756.0,0.3608]
[1735667196151,0.01480676,93761.0,93756.0,0.3608]
[1735667196356,0.001,93770.0,93760.0,0.053415]
[1735667196554,0.001,93770.0,93769.0,0.3608]
[1735667196747,0.01595601,93770.0,93769.0,0.3608]
[1735667196965,0.16407892,93780.0,93769.0,0.3608]
[1735667197353,0.16407892,93780.0,93756.0,0.002]
[1735667197354,0.3608,93773.0,93756.0,0.002]
[1735667197554,0.3608,93760.0,93756.0,0.002]
[1735667197861,0.16407892,93766.0,93742.0,6.581e-05]
[1735667198054,0.3608,93763.0,93753.0,0.3608]
[1735667198660,0.3608,93754.0,93742.0,6.581e-05]
[1735667198854,0.16407892,93752.0,93742.0,6.581e-05]
[1735667199652,0.3608,93754.0,93742.0,6.581e-05]
[1735667199847,0.1317,93762.0,93756.0,0.002]
[1735667200561,0.0999156,93761.0,93742.0,0.00406581]
[1735667200758,0.3608,93754.0,93742.0,0.00406581]
[1735667201061,0.3608,93746.0,93708.0,0.3608]
[1735667201269,0.16407892,93722.0,93708.0,0.3608]
[1735667201459,0.16407892,93720.0,93708.0,0.3608]
[1735667201759,0.3608,93721.0,93708.0,0.29131387]
[1735667203257,0.3608,93721.0,93708.0,0.29831387]
[1735667203455,0.3608,93721.0,93708.0,0.29931387]
[1735667203663,0.57822171,93721.0,93708.0,0.29931387]
[1735667204056,0.57922171,93721.0,93708.0,0.29231387]
[1735667204260,0.134,93720.0,93708.0,0.29231387]
[1735667204663,0.23433233,93720.0,93708.0,0.29231387]
[1735667205558,0.39841125,93720.0,93708.0,0.29231387]
[1735667205954,0.10033233,93719.0,93708.0,0.29231387]
[1735667207463,0.10033233,93719.0,93708.0,0.29131387]
[1735667207694,0.10033233,93719.0,93708.0,0.29231387]
[1735667207868,0.10133233,93719.0,93708.0,0.29231387]
[1735667208255,0.10133233,93719.0,93708.0,0.24030972]
[1735667208565,0.3608,93710.0,93695.0,0.3608]
[1735667208761,0.16407892,93705.0,93695.0,0.3608]
[1735667210666,0.17884715,93705.0,93695.0,0.3608]
[1735667210964,0.17984715,93705.0,93695.0,0.3628]
[1735667212569,0.17984715,93705.0,93695.0,0.3618]
[1735667212760,0.17984715,93705.0,93695.0,0.3628]
[1735667213461,0.3608,93700.0,93689.0,0.00160082]
[1735667213660,0.3608,93690.0,93666.0,0.3608]
[1735667213866,0.16407892,93682.0,93666.0,0.3608]
[1735667215960,0.16407892,93682.0,93675.0,0.3608]
[1735667216164,0.17921312,93682.0,93675.0,0.3608]
[1735667216970,0.18021312,93682.0,93667.0,0.3608]
[1735667217366,0.17921312,93682.0,93667.0,0.3608]
[1735667217564,0.3608,93681.0,93667.0,0.3608]
[1735667217868,0.16407892,93680.0,93675.0,0.005]
[1735667218069,0.3608,93681.0,93675.0,0.005]
[1735667219373,0.3608,93681.0,93667.0,0.3608]
[1735667219673,0.16407892,93677.0,93667.0,0.3678]
[1735667220377,0.16407892,93677.0,93675.0,0.002]
[1735667220565,0.3618,93681.0,93675.0,0.002]
[1735667221074,0.3608,93676.0,93638.0,0.3608]
[1735667221375,0.16407892,93653.0,93643.0,0.36240168]
[1735667221584,0.16407892,93653.0,93643.0,0.3608]
[1735667222463,0.16407892,93653.0,93633.0,0.3608]
[1735667222666,0.16407892,93640.0,93633.0,0.3608]
[1735667223273,0.3608,93657.0,93633.0,0.3608]
[1735667223485,0.16407892,93643.0,93633.0,0.3608]
[1735667223665,0.16407892,93643.0,93642.0,0.3608]
[1735667223978,0.16407892,93652.0,93633.0,0.3648]
[1735667224195,0.7216,93637.0,93600.0,0.10064]
[1735667224373,0.16407892,93612.0,93600.0,0.1]
[1735667224571,0.3608,93615.0,93600.0,0.153506]
[1735667224875,0.3608,93615.0,93603.0,0.1269]
[1735667225280,0.3608,93615.0,93606.0,0.053503]
[1735667225972,0.3756113,93615.0,93603.0,0.1269]
[1735667226173,0.16407892,93613.0,93603.0,0.1269]
[1735667226376,0.16407892,93613.0,93602.0,0.36240238]
[1735667227168,0.3766113,93615.0,93602.0,0.36240238]
[1735667227371,0.00160292,93639.0,93628.0,0.05349]
[1735667227574,0.01652507,93639.0,93629.0,0.2637]
[1735667227765,0.00160292,93639.0,93637.0,0.053485]
[1735667227965,0.00160292,93639.0,93638.0,1.5]
[1735667228276,0.16407892,93650.0,93638.0,1.8608]
[1735667228770,0.37554752,93659.0,93638.0,0.3608]
[1735667229382,0.37554752,93659.0,93639.0,1.5]
[1735667229579,0.001,93650.0,93638.0,0.3608]
[1735667230265,0.004,93639.0,93638.0,0.3608]
[1735667230872,0.37654752,93659.0,93638.0,0.3608]
[1735667232076,0.16407892,93650.0,93638.0,0.3608]
[1735667233375,0.37654752,93659.0,93647.0,0.3608]
[1735667233773,0.001,93650.0,93647.0,0.3608]
[1735667234782,0.3608,93668.0,93647.0,0.6608]
[1735667234970,0.3608,93685.0,93662.0,0.053471]
[1735667235174,0.3608,93685.0,93659.0,0.3608]
[1735667235175,0.3608,93685.0,93669.0,0.053467]
[1735667235573,0.3608,93685.0,93667.0,0.3608]
[1735667235574,0.01805648,93674.0,93667.0,0.3608]
[1735667236288,0.01060238,93672.0,93669.0,0.001]
[1735667236781,0.01060238,93672.0,93670.0,0.053466]
[1735667236984,0.3608,93702.0,93671.0,0.3608]
[1735667237174,0.3608,93702.0,93686.0,0.3608]
[1735667237570,0.3608,93712.0,93695.0,0.3608]
[1735667237775,0.16407892,93710.0,93695.0,0.3608]
[1735667238079,0.3608,93712.0,93695.0,0.3608]
[1735667238080,0.37912284,93712.0,93695.0,0.3608]
[1735667238384,0.35971176,93712.0,93695.0,0.3608]
[1735667238582,0.01832284,93712.0,93695.0,0.3608]
[1735667238781,0.00160141,93719.0,93704.0,0.3608]
[1735667239784,0.001,93712.0,93704.0,0.3608]
[1735667240277,0.00160141,93719.0,93710.0,0.053444]
[1735667240471,0.00160141,93719.0,93713.0,0.3608]
[1735667240673,0.3608,93728.0,93717.0,0.053439]
[1735667240876,0.3608,93728.0,93719.0,0.053438]
[1735667241073,0.01861811,93729.0,93713.0,0.3608]
[1735667241274,0.3608,93720.0,93704.0,0.003]
[1735667241479,0.3608,93712.0,93704.0,0.003]
[1735667241780,0.3608,93712.0,93685.0,0.3608]
[1735667241981,0.16407892,93710.0,93693.0,0.3608]
[1735667242390,0.16407892,93703.0,93693.0,0.3608]
[1735667243191,0.16407892,93703.0,93698.0,0.05345]
[1735667243691,0.16407892,93703.0,93694.0,0.1341]
[1735667243891,0.16507892,93703.0,93694.0,0.1341]
[1735667244685,0.52587892,93703.0,93693.0,0.3678]
[1735667245388,0.52487892,93703.0,93693.0,0.3608]
[1735667245690,0.52487892,93703.0,93698.0,0.004]
[1735667246084,0.52487892,93703.0,93693.0,0.3638]
[1735667247088,0.16407892,93703.0,93693.0,0.3638]
[1735667247289,0.16407892,93703.0,93693.0,0.3648]
[1735667248693,0.3608,93695.0,93693.0,0.004]
[1735667248886,0.3608,93695.0,93675.0,0.3608]
[1735667249081,0.3608,93695.0,93671.0,0.3608]
[1735667249082,0.3608,93679.0,93671.0,0.3608]
[1735667249288,0.3608,93679.0,93663.0,0.3608]
[1735667249597,0.16407892,93677.0,93661.0,0.3608]
[1735667249781,0.16407892,93680.0,93672.0,0.3608]
[1735667250594,0.001,93679.0,93672.0,0.3608]
[1735667251181,0.02282187,93684.0,93672.0,0.3608]
[1735667251398,0.00056001,93690.0,93683.0,0.3608]
[1735667251591,0.52487892,93700.0,93683.0,0.3608]
[1735667252186,0.54764686,93700.0,93683.0,0.3608]
[1735667252596,0.001,93690.0,93683.0,0.3608]
[1735667253198,0.54864686,93700.0,93683.0,0.3608]
[1735667254699,0.001,93690.0,93683.0,0.3618]
[1735667255000,0.3618,93690.0,93683.0,0.001]
[1735667255299,0.7216,93690.0,93663.0,0.3608]
[1735667255491,0.3608,93678.0,93663.0,0.3608]
[1735667256300,0.3608,93682.0,93663.0,0.3608]
[1735667256694,0.3608,93682.0,93665.0,0.053469]
[1735667256896,0.3608,93682.0,93673.0,0.3608]
[1735667257193,0.18818202,93690.0,93673.0,0.3608]
[1735667257194,0.0241031,93690.0,93673.0,0.3608]
[1735667257395,0.0241031,93690.0,93684.0,0.3608]
[1735667257998,0.0231031,93690.0,93684.0,0.3608]
[1735667258191,0.3608,93700.0,93684.0,0.3608]
[1735667258593,0.001,93690.0,93684.0,0.3618]
[1735667258999,0.001,93690.0,93684.0,0.415258]
[1735667259189,0.38378475,93700.0,93684.0,0.3618]
[1735667259390,0.001,93690.0,93687.0,0.053457]
[1735667260215,0.1241,93717.0,93687.0,0.3]
[1735667260404,0.3608,93726.0,93702.0,0.3608]
[1735667260601,0.3608,93738.0,93717.0,0.05344]
[1735667261203,0.02272816,93728.0,93724.0,0.053436]
[1735667261405,0.36140001,93750.0,93724.0,0.3608]
[1735667261603,0.3608,93750.0,93736.0,0.3608]
[1735667262104,0.38372002,93750.0,93736.0,0.3608]
[1735667262407,0.02292002,93750.0,93736.0,0.3608]
[1735667262601,0.3608,93753.0,93736.0,0.3608]
[1735667262907,0.3608,93745.0,93724.0,0.3608]
[1735667263505,0.3608,93745.0,93726.0,0.053434]
[1735667263902,0.003,93750.0,93736.0,0.3608]
[1735667264409,0.3608,93744.0,93724.0,0.3608]
[1735667264602,0.3608,93736.0,93718.0,0.053439]
[1735667264911,0.3608,93736.0,93715.0,0.3608]
[1735667265501,0.3608,93736.0,93724.0,0.002]
[1735667265699,0.3608,93744.0,93726.0,0.053434]
[1735667265902,0.3608,93744.0,93724.0,0.3628]
[1735667265903,0.3608,93744.0,93733.0,0.3608]
[1735667266205,0.001,93736.0,93734.0,0.05343]
[1735667267408,0.3608,93768.0,93748.0,0.053422]
[1735667267601,0.02498817,93757.0,93756.0,0.3608]
[1735667267803,0.00160073,93757.0,93756.0,0.3608]
[1735667268707,0.009,93757.0,93756.0,0.3608]
[1735667268910,0.02344519,93768.0,93756.0,0.3608]
[1735667268911,0.16407892,93790.0,93763.0,0.053413]
[1735667269114,0.3608,93778.0,93766.0,0.3608]
[1735667269408,0.3608,93778.0,93756.0,0.3608]
[1735667269607,0.003,93757.0,93756.0,0.3618]
[1735667270410,0.3608,93769.0,93735.0,0.053429]
[1735667270603,0.16407892,93750.0,93735.0,0.053429]
[1735667270802,0.16407892,93750.0,93734.0,0.3608]
[1735667271310,0.3608,93752.0,93734.0,0.3608]
[1735667272013,0.001,93750.0,93734.0,0.3698]
[1735667272604,0.16407892,93750.0,93734.0,0.3608]
[1735667272808,0.3608,93743.0,93734.0,0.009]
[1735667273004,0.3608,93735.0,93734.0,0.009]
[1735667273209,0.3608,93735.0,93701.0,0.1356]
[1735667273210,0.3608,93735.0,93711.0,0.3608]
[1735667273410,0.3608,93735.0,93734.0,0.009]
[1735667273912,0.3608,93735.0,93734.0,0.012]
[1735667274710,0.3638,93735.0,93734.0,0.009]
[1735667275017,0.3638,93735.0,93734.0,1e-08]
[1735667275400,0.3658,93735.0,93711.0,0.3608]
[1735667275810,0.16407892,93730.0,93711.0,0.3608]
[1735667276114,0.3608,93727.0,93711.0,0.3608]
[1735667276611,0.3883631,93735.0,93712.0,0.01060051]
[1735667276799,0.3883631,93735.0,93720.0,0.3608]
[1735667277211,0.3853631,93735.0,93720.0,0.3608]
[1735667277412,0.16407892,93730.0,93712.0,0.01160051]
[1735667278005,0.16407892,93730.0,93712.0,0.01060051]
[1735667278311,0.0245631,93735.0,93727.0,0.3608]
[1735667278713,0.001,93730.0,93727.0,0.3608]
[1735667279212,0.001,93730.0,93728.0,0.053433]
[1735667279407,0.4883,93767.0,93728.0,0.1312]
[1735667279608,0.36136001,93767.0,93749.0,0.053421]
[1735667279807,0.52487892,93770.0,93749.0,0.053421]
[1735667280114,0.52487892,93770.0,93748.0,0.3608]
[1735667280409,0.24970174,93772.0,93758.0,0.3608]
[1735667280619,0.3608,93779.0,93758.0,0.3608]
[1735667280812,0.02324279,93763.0,93758.0,0.3608]
[1735667282313,0.001,93760.0,93739.0,0.3608]
[1735667282505,0.16407892,93750.0,93739.0,0.3608]
[1735667282721,0.3608,93745.0,93729.0,0.3608]
[1735667283009,0.1288,93759.0,93737.0,0.3608]
[1735667283518,0.3608,93748.0,93739.0,0.009]
[1735667284009,0.3608,93756.0,93739.0,0.009]
[1735667284511,0.001,93760.0,93753.0,0.3608]
[1735667284708,0.001,93760.0,93754.0,0.1329]
[1735667285016,0.001,93759.0,93754.0,0.186318]
[1735667285413,0.001,93759.0,93744.0,0.3608]
[1735667285718,0.3608,93753.0,93736.0,0.3608]
[1735667285911,0.16407892,93750.0,93726.0,0.053435]
[1735667286109,0.3608,93745.0,93731.0,0.3608]
[1735667287508,0.3608,93745.0,93731.0,0.3618]
[1735667287710,0.3608,93737.0,93731.0,0.001]
[1735667288819,0.3608,93737.0,93731.0,0.007]
[1735667289413,0.3608,93737.0,93731.0,0.003]
[1735667289826,0.38470037,93737.0,93731.0,0.002]
[1735667290119,0.38570037,93737.0,93731.0,0.006]
[1735667290821,0.09377475,93736.0,93731.0,0.006]
[1735667291021,0.09377475,93736.0,93712.0,0.00160051]
[1735667291022,0.1,93722.0,93712.0,0.00160051]
[1735667291230,0.26407892,93722.0,93713.0,0.3608]
[1735667291524,0.1,93722.0,93713.0,0.3608]
[1735667292032,0.1,93722.0,93712.0,0.36240051]
[1735667292221,0.1,93722.0,93720.0,0.3608]
[1735667292415,0.101,93722.0,93720.0,0.3608]
[1735667292610,0.101,93722.0,93721.0,0.053437]
[1735667292815,0.1,93722.0,93721.0,0.053437]
[1735667293022,0.101,93722.0,93721.0,0.053437]
[1735667293326,0.101,93722.0,93720.0,0.3608]
[1735667293523,0.101,93722.0,93720.0,0.415238]
[1735667293718,0.101,93722.0,93720.0,0.3618]
[1735667293925,0.101,93722.0,93720.0,0.001]
[1735667294310,0.101,93722.0,93721.0,0.001]
[1735667294516,0.1,93722.0,93721.0,0.001]
[1735667294716,0.51726582,93722.0,93712.0,0.00160051]
[1735667294919,0.3608,93713.0,93689.0,0.3608]
[1735667295225,0.3608,93713.0,93689.0,0.33328563]
[1735667295226,0.16407892,93699.0,93689.0,0.33328563]
[1735667295429,0.3608,93690.0,93669.0,0.4949]
[1735667295617,0.16407892,93680.0,93669.0,0.3608]
[1735667296026,0.52487892,93690.0,93669.0,0.3608]
[1735667296614,0.52587892,93690.0,93669.0,0.3608]
[1735667296819,0.3618,93690.0,93678.0,0.414262]
[1735667297025,0.001,93690.0,93680.0,0.053461]
[1735667297329,0.001,93690.0,93678.0,0.3608]
[1735667297625,0.001,93690.0,93678.0,0.414262]
[1735667298213,0.001,93690.0,93678.0,0.3608]
[1735667298426,0.001,93690.0,93678.0,0.414262]
[1735667298626,0.001,93690.0,93679.0,0.053461]
[1735667298829,0.001,93690.0,93678.0,0.3608]
[1735667299326,0.001,93690.0,93679.0,1.5]
[1735667299520,0.001,93690.0,93679.0,1.553461]
[1735667299725,0.3608,93693.0,93679.0,1.553461]
[1735667300123,0.02077438,93699.0,93690.0,0.3608]
[1735667300315,0.3608,93701.0,93690.0,0.3608]
[1735667300514,0.02057022,93705.0,93699.0,0.3608]
[1735667300718,0.16407892,93720.0,93699.0,0.41425]
[1735667300920,0.16407892,93720.0,93700.0,0.053449]
[1735667301530,0.18495649,93720.0,93699.0,0.3608]
[1735667301722,0.02087757,93720.0,93699.0,0.3608]
[1735667301925,0.006,93720.0,93710.0,0.3608]
[1735667302119,0.006,93720.0,93719.0,0.3608]
[1735667302521,0.3608,93749.0,93731.0,0.053432]
[1735667302726,0.3608,93749.0,93731.0,0.414232]
[1735667302727,0.02021748,93739.0,93731.0,0.414232]
[1735667303322,0.02021748,93739.0,93731.0,0.3608]
[1735667303527,0.3608,93738.0,93719.0,0.3608]
[1735667303831,0.122,93737.0,93718.0,0.053439]
[1735667304023,0.00360134,93732.0,93717.0,0.3608]
[1735667304220,0.00360134,93732.0,93719.0,0.053439]
[1735667304423,0.00360134,93732.0,93717.0,0.3608]
[1735667304625,0.3608,93729.0,93717.0,0.3608]
[1735667305029,0.3608,93729.0,93718.0,0.004]
[1735667305631,0.3608,93729.0,93719.0,0.001]
[1735667306329,0.3618,93729.0,93719.0,0.001]
[1735667306523,0.3618,93729.0,93718.0,0.058439]
[1735667306725,0.3618,93729.0,93718.0,0.059439]
[1735667306920,0.001,93729.0,93728.0,0.053433]
[1735667307133,0.001,93729.0,93725.0,0.3608]
[1735667307933,0.001,93729.0,93726.0,0.053429]
[1735667308329,0.02038663,93731.0,93725.0,0.3608]
[1735667308534,0.001,93729.0,93725.0,0.3608]
[1735667309035,0.00160134,93732.0,93726.0,0.002]
[1735667309739,0.02016901,93732.0,93725.0,0.3628]
[1735667309932,0.001,93729.0,93725.0,0.3628]
[1735667310634,0.00260134,93732.0,93725.0,0.3628]
[1735667311132,0.02103485,93732.0,93725.0,0.3628]
[1735667311336,0.00260134,93732.0,93726.0,0.002]
[1735667311836,0.00260134,93732.0,93725.0,0.3628]
[1735667312536,0.00260134,93732.0,93726.0,0.002]
[1735667313035,0.001,93729.0,93725.0,0.3608]
[1735667313229,0.001,93729.0,93725.0,0.3628]
[1735667313933,0.00260134,93732.0,93725.0,0.002]
[1735667314143,0.00260134,93732.0,93700.0,0.00160069]
[1735667314144,0.3608,93727.0,93700.0,0.00160069]
[1735667314327,0.16407892,93710.0,93700.0,0.00160069]
[1735667314532,0.3608,93715.0,93700.0,0.00160069]
[1735667314836,0.3608,93706.0,93689.0,0.19195518]
[1735667315543,0.13,93705.0,93700.0,0.004]
[1735667316134,0.13,93705.0,93689.0,0.004]
[1735667316738,0.131,93705.0,93689.0,0.004]
[1735667317533,0.3608,93697.0,93689.0,0.004]
[1735667318241,0.3608,93697.0,93689.0,0.005]